[Event "Early-Titled-Tuesday-Blitz-February-20-2024"]
[Site "Chess.com"]
[Date "2024.02.20"]
[Round "10"]
[White "margarita_2703"]
[Black "WilsonPalencia21"]
[Result "1/2-1/2"]
[WhiteElo "2395"]
[BlackElo "2518"]
[TimeControl "180+1"]
[EndTime "9:58:49 PST"]
[Termination "Game drawn by agreement"]

1. e4 {[%clk 0:03:00.9]} 1... c5 {[%clk 0:02:59.5]} 2. Nf3 {[%clk 0:03:00.7]}
2... d6 {[%clk 0:02:59.5]} 3. d4 {[%clk 0:03:00.6]} 3... cxd4 {[%clk 0:03:00.4]}
4. Qxd4 {[%clk 0:03:01.1]} 4... Nc6 {[%clk 0:03:00.4]} 5. Bb5 {[%clk 0:03:01.6]}
5... Qa5+ {[%clk 0:03:00.7]} 6. Nc3 {[%clk 0:03:01.3]} 6... Qxb5 {[%clk
0:03:01.6]} 7. Nxb5 {[%clk 0:03:01.6]} 7... Nxd4 {[%clk 0:03:02.5]} 8. Nfxd4
{[%clk 0:03:02.1]} 8... Kd8 {[%clk 0:03:03.4]} 9. c4 {[%clk 0:03:02.2]} 9... Bd7
{[%clk 0:03:03.9]} 10. b3 {[%clk 0:02:59.4]} 10... Nf6 {[%clk 0:03:01.8]} 11. f3
{[%clk 0:02:58.3]} 11... a6 {[%clk 0:03:01.5]} 12. Nc3 {[%clk 0:02:58.6]} 12...
Rc8 {[%clk 0:03:01.6]} 13. Bb2 {[%clk 0:02:58.3]} 13... e6 {[%clk 0:03:00.7]}
14. Ke2 {[%clk 0:02:54.6]} 14... Kc7 {[%clk 0:03:00]} 15. Rhd1 {[%clk
0:02:55.1]} 15... Be7 {[%clk 0:03:00.1]} 16. Rac1 {[%clk 0:02:55.7]} 16... Kb8
{[%clk 0:02:59.9]} 17. g4 {[%clk 0:02:53.5]} 17... g5 {[%clk 0:02:58.5]} 18. Ba3
{[%clk 0:02:52]} 18... Ne8 {[%clk 0:02:46.7]} 19. e5 {[%clk 0:02:48.7]} 19... h5
{[%clk 0:02:37]} 20. Ne4 {[%clk 0:02:44.2]} 20... hxg4 {[%clk 0:02:35]} 21. exd6
{[%clk 0:02:40.2]} 21... Rxh2+ {[%clk 0:02:26]} 22. Ke3 {[%clk 0:02:38.8]} 22...
Bf6 {[%clk 0:02:13.6]} 23. fxg4 {[%clk 0:02:37]} 23... Be5 {[%clk 0:02:09.8]}
24. Nf3 {[%clk 0:02:36.5]} 24... Bf4+ {[%clk 0:02:08.8]} 25. Kd3 {[%clk
0:02:36.8]} 25... Rxa2 {[%clk 0:02:06.6]} 26. Ra1 {[%clk 0:02:37]} 26... Rxa1
{[%clk 0:01:57]} 27. Rxa1 {[%clk 0:02:37.9]} 27... f5 {[%clk 0:01:51.5]} 28.
gxf5 {[%clk 0:02:36]} 28... exf5 {[%clk 0:01:49.9]} 29. Nexg5 {[%clk 0:02:36.3]}
29... Nxd6 {[%clk 0:01:45.5]} 30. Rd1 {[%clk 0:02:29.1]} 30... Bc6 {[%clk
0:01:42.8]} 31. Kc2 {[%clk 0:02:25.6]} 31... Ne4 {[%clk 0:01:42.4]} 32. Rg1
{[%clk 0:02:14.5]} 32... Rg8 {[%clk 0:01:35.5]} 33. Bc1 {[%clk 0:02:09.7]} 33...
Bc7 {[%clk 0:01:08.8]} 34. Kb2 {[%clk 0:01:56.1]} 34... Nxg5 {[%clk 0:01:07.4]}
35. Nxg5 {[%clk 0:01:53.7]} 35... f4 {[%clk 0:00:57.7]} 36. Ka2 {[%clk
0:01:43.4]} 36... Rg6 {[%clk 0:00:47.1]} 37. Bd2 {[%clk 0:01:35]} 37... b5
{[%clk 0:00:45.9]} 38. cxb5 {[%clk 0:01:34.1]} 38... axb5 {[%clk 0:00:45.8]} 39.
Kb1 {[%clk 0:01:23]} 39... Kb7 {[%clk 0:00:43.6]} 40. Ka2 {[%clk 0:01:21.9]}
40... Bb6 {[%clk 0:00:33.9]} 41. Rg4 {[%clk 0:01:11.9]} 41... f3 {[%clk
0:00:20.5]} 42. Rf4 {[%clk 0:01:11.8]} 42... Bc7 {[%clk 0:00:14.5]} 43. Rf7
{[%clk 0:01:06.3]} 43... Bd5 {[%clk 0:00:14.9]} 44. Rf5 {[%clk 0:01:00.9]} 44...
Rd6 {[%clk 0:00:14.8]} 45. Be3 {[%clk 0:00:56]} 45... Ra6+ {[%clk 0:00:12.5]}
46. Kb2 {[%clk 0:00:54.4]} 46... Bc6 {[%clk 0:00:12]} 47. Nxf3 {[%clk
0:00:52.5]} 47... Be4 {[%clk 0:00:12.3]} 48. Rxb5+ {[%clk 0:00:51.8]} 48... Kc6
{[%clk 0:00:12.4]} 49. Rc5+ {[%clk 0:00:52.2]} 49... Kd6 {[%clk 0:00:12.9]} 50.
Nd2 {[%clk 0:00:50]} 50... Bd5 {[%clk 0:00:12.9]} 51. Rc2 {[%clk 0:00:44.2]}
51... Kd7 {[%clk 0:00:11.8]} 52. Bd4 {[%clk 0:00:43.1]} 52... Bd6 {[%clk
0:00:11.9]} 53. Nc4 {[%clk 0:00:41.6]} 53... Bb4 {[%clk 0:00:10.8]} 54. Bc3
{[%clk 0:00:39.6]} 54... Bxc4 {[%clk 0:00:10.2]} 55. bxc4 {[%clk 0:00:38]} 55...
Bc5 {[%clk 0:00:10.6]} 56. Rd2+ {[%clk 0:00:37.9]} 56... Kc6 {[%clk 0:00:11.1]}
57. Rd5 {[%clk 0:00:37.9]} 57... Rb6+ {[%clk 0:00:11.4]} 58. Kc2 {[%clk
0:00:38.1]} 58... Ra6 {[%clk 0:00:11.1]} 59. Bd4 {[%clk 0:00:38.6]} 59... Bxd4
{[%clk 0:00:11.2]} 60. Rxd4 {[%clk 0:00:39.5]} 60... Kc5 {[%clk 0:00:11.9]} 61.
Rg4 {[%clk 0:00:37.9]} 61... Ra3 {[%clk 0:00:11.1]} 62. Kb2 {[%clk 0:00:37]}
62... Rf3 {[%clk 0:00:11.2]} 63. Kc2 {[%clk 0:00:37.2]} 63... Re3 {[%clk
0:00:11.3]} 64. Kd2 {[%clk 0:00:37.6]} 64... Rh3 {[%clk 0:00:11.5]} 65. Rg5+
{[%clk 0:00:37.3]} 65... Kxc4 {[%clk 0:00:11.6]} 66. Rg4+ {[%clk 0:00:38.2]}
66... Kc5 {[%clk 0:00:12.1]} 1/2-1/2

[Event "Early-Titled-Tuesday-Blitz-February-20-2024"]
[Site "Chess.com"]
[Date "2024.02.20"]
[Round "10"]
[White "dropstoneDP"]
[Black "lamomiajunior"]
[Result "1-0"]
[WhiteElo "3009"]
[BlackElo "2735"]
[TimeControl "180+1"]
[EndTime "9:58:50 PST"]
[Termination "dropstoneDP won by resignation"]

1. e4 {[%clk 0:02:54.4]} 1... c5 {[%clk 0:02:59.6]} 2. Nf3 {[%clk 0:02:54]} 2...
d6 {[%clk 0:03:00.1]} 3. d4 {[%clk 0:02:54.3]} 3... cxd4 {[%clk 0:03:01]} 4.
Nxd4 {[%clk 0:02:55.1]} 4... Nf6 {[%clk 0:03:01.7]} 5. Nc3 {[%clk 0:02:55.6]}
5... a6 {[%clk 0:03:02.4]} 6. f3 {[%clk 0:02:56.2]} 6... e6 {[%clk 0:03:00.5]}
7. g4 {[%clk 0:02:54.2]} 7... Be7 {[%clk 0:02:49.2]} 8. Be3 {[%clk 0:02:50.7]}
8... Nc6 {[%clk 0:02:48]} 9. Qd2 {[%clk 0:02:50.1]} 9... d5 {[%clk 0:02:42.9]}
10. g5 {[%clk 0:02:48]} 10... Nh5 {[%clk 0:02:36]} 11. exd5 {[%clk 0:02:48.2]}
11... exd5 {[%clk 0:02:36]} 12. O-O-O {[%clk 0:02:42.7]} 12... O-O {[%clk
0:02:30.9]} 13. Kb1 {[%clk 0:02:41.1]} 13... Re8 {[%clk 0:02:22.9]} 14. Nb3
{[%clk 0:02:36.4]} 14... Bb4 {[%clk 0:02:19.5]} 15. a3 {[%clk 0:02:33.5]} 15...
Bxc3 {[%clk 0:02:18.2]} 16. Qxc3 {[%clk 0:02:34.4]} 16... Bf5 {[%clk 0:02:17.8]}
17. Bc5 {[%clk 0:02:14.7]} 17... Rc8 {[%clk 0:02:15.7]} 18. Bd3 {[%clk
0:02:13.9]} 18... Bxd3 {[%clk 0:02:15.2]} 19. Qxd3 {[%clk 0:02:14.8]} 19... Ne5
{[%clk 0:02:12.6]} 20. Qxd5 {[%clk 0:02:13.5]} 20... Qxd5 {[%clk 0:02:12.4]} 21.
Rxd5 {[%clk 0:02:14.4]} 21... Nf4 {[%clk 0:02:09]} 22. Rdd1 {[%clk 0:02:13]}
22... Nh3 {[%clk 0:01:59.7]} 23. Rhf1 {[%clk 0:02:11.3]} 23... Ng6 {[%clk
0:01:58.1]} 24. Bd6 {[%clk 0:02:05.7]} 24... Nxg5 {[%clk 0:01:57]} 25. f4 {[%clk
0:02:05]} 25... Ne4 {[%clk 0:01:57.4]} 26. f5 {[%clk 0:02:02.6]} 26... Nh4
{[%clk 0:01:56.3]} 27. Bg3 {[%clk 0:02:01.4]} 27... Ng2 {[%clk 0:01:55.6]} 28.
Rd3 {[%clk 0:01:53]} 28... Nxg3 {[%clk 0:01:55.4]} 29. hxg3 {[%clk 0:01:47.7]}
29... Ne3 {[%clk 0:01:51.7]} 30. Rf2 {[%clk 0:01:46.6]} 30... Ng4 {[%clk
0:01:51.7]} 31. Rf4 {[%clk 0:01:45.8]} 31... Ne5 {[%clk 0:01:51.8]} 32. Re3
{[%clk 0:01:40.2]} 32... f6 {[%clk 0:01:46.3]} 33. Rb4 {[%clk 0:01:37.6]} 33...
Rc7 {[%clk 0:01:46.2]} 34. Nd4 {[%clk 0:01:34.7]} 34... Rec8 {[%clk 0:01:45.6]}
35. c3 {[%clk 0:01:32.9]} 35... b5 {[%clk 0:01:42.7]} 36. a4 {[%clk 0:01:32.6]}
36... Nc4 {[%clk 0:01:39.9]} 37. Re2 {[%clk 0:01:31.8]} 37... bxa4 {[%clk
0:01:27.8]} 38. Rxa4 {[%clk 0:01:32.7]} 38... a5 {[%clk 0:01:27.3]} 39. Nb5
{[%clk 0:01:28.6]} 39... Rc5 {[%clk 0:01:21.5]} 40. Rxc4 {[%clk 0:01:27.3]}
40... Rxc4 {[%clk 0:01:22.4]} 41. Nd6 {[%clk 0:01:27.8]} 41... R4c6 {[%clk
0:01:19.1]} 42. Nxc8 {[%clk 0:01:27.3]} 42... Rxc8 {[%clk 0:01:20]} 43. Ka2
{[%clk 0:00:53.9]} 43... Rc5 {[%clk 0:01:18.8]} 44. Rf2 {[%clk 0:00:54.5]} 44...
Kf7 {[%clk 0:01:13.6]} 45. Rf3 {[%clk 0:00:54.5]} 45... Ke7 {[%clk 0:01:12.8]}
46. b4 {[%clk 0:00:51]} 46... axb4 {[%clk 0:01:12.2]} 47. cxb4 {[%clk
0:00:51.9]} 47... Rc1 {[%clk 0:01:09.9]} 48. Kb3 {[%clk 0:00:49.3]} 48... Kd6
{[%clk 0:01:09.9]} 49. Rd3+ {[%clk 0:00:44.4]} 49... Ke5 {[%clk 0:01:10.1]} 50.
Rd7 {[%clk 0:00:44.5]} 50... Kxf5 {[%clk 0:01:08.1]} 51. Rxg7 {[%clk 0:00:44.3]}
51... h5 {[%clk 0:01:08.4]} 52. b5 {[%clk 0:00:44.7]} 52... Rg1 {[%clk
0:01:05.8]} 53. Kc2 {[%clk 0:00:31.9]} 53... Rg2+ {[%clk 0:00:36.7]} 54. Kc1
{[%clk 0:00:31.9]} 54... Rg1+ {[%clk 0:00:32.8]} 55. Kc2 {[%clk 0:00:31.6]}
55... Rg2+ {[%clk 0:00:33]} 56. Kc3 {[%clk 0:00:31.2]} 56... h4 {[%clk 0:00:31]}
57. b6 {[%clk 0:00:31.5]} 57... Rxg3+ {[%clk 0:00:29.9]} 58. Rxg3 {[%clk
0:00:32.1]} 58... hxg3 {[%clk 0:00:30.8]} 59. b7 {[%clk 0:00:32.6]} 59... g2
{[%clk 0:00:31.4]} 60. b8=Q {[%clk 0:00:33.2]} 60... g1=Q {[%clk 0:00:32.3]} 61.
Qc8+ {[%clk 0:00:33.1]} 61... Kf4 {[%clk 0:00:29.9]} 62. Qc7+ {[%clk 0:00:33.2]}
62... Kf5 {[%clk 0:00:29.9]} 63. Qd7+ {[%clk 0:00:30.2]} 63... Ke5 {[%clk
0:00:29.4]} 64. Qe7+ {[%clk 0:00:30.2]} 64... Kf5 {[%clk 0:00:29.7]} 65. Qd7+
{[%clk 0:00:29.8]} 65... Kg6 {[%clk 0:00:30.1]} 66. Qe8+ {[%clk 0:00:26.7]}
66... Kh6 {[%clk 0:00:30.5]} 67. Qh8+ {[%clk 0:00:26.5]} 67... Kg6 {[%clk
0:00:28.9]} 68. Qg8+ {[%clk 0:00:27]} 68... Kf5 {[%clk 0:00:29.3]} 69. Qxg1
{[%clk 0:00:27.9]} 1-0

[Event "Early-Titled-Tuesday-Blitz-February-20-2024"]
[Site "Chess.com"]
[Date "2024.02.20"]
[Round "10"]
[White "TokChess"]
[Black "ChessQueen"]
[Result "0-1"]
[WhiteElo "2559"]
[BlackElo "2743"]
[TimeControl "180+1"]
[EndTime "9:58:50 PST"]
[Termination "ChessQueen won on time"]

1. e4 {[%clk 0:02:54]} 1... c6 {[%clk 0:02:57.8]} 2. Nf3 {[%clk 0:02:53.5]} 2...
d5 {[%clk 0:02:58.4]} 3. Nc3 {[%clk 0:02:52.9]} 3... dxe4 {[%clk 0:02:58.7]} 4.
Nxe4 {[%clk 0:02:52.8]} 4... Nf6 {[%clk 0:02:59.4]} 5. Nxf6+ {[%clk 0:02:43.9]}
5... exf6 {[%clk 0:02:59.5]} 6. d4 {[%clk 0:02:44.8]} 6... Bd6 {[%clk
0:02:58.9]} 7. Be2 {[%clk 0:02:38.7]} 7... O-O {[%clk 0:02:58.2]} 8. O-O {[%clk
0:02:38.2]} 8... Re8 {[%clk 0:02:58]} 9. Re1 {[%clk 0:02:36.9]} 9... Nd7 {[%clk
0:02:58]} 10. Bf1 {[%clk 0:02:26.8]} 10... Nf8 {[%clk 0:02:58.3]} 11. Rxe8
{[%clk 0:02:22.9]} 11... Qxe8 {[%clk 0:02:58]} 12. Qe2 {[%clk 0:02:19.9]} 12...
Qd8 {[%clk 0:02:55.5]} 13. h3 {[%clk 0:02:18]} 13... Bf5 {[%clk 0:02:53.9]} 14.
c3 {[%clk 0:02:17.1]} 14... Ng6 {[%clk 0:02:53.1]} 15. Be3 {[%clk 0:02:10.5]}
15... Bc7 {[%clk 0:02:50.9]} 16. Re1 {[%clk 0:01:59.7]} 16... Qd6 {[%clk
0:02:50.8]} 17. g3 {[%clk 0:01:58.3]} 17... Qd7 {[%clk 0:02:48.7]} 18. h4 {[%clk
0:01:43.4]} 18... Bg4 {[%clk 0:02:48.6]} 19. Bg2 {[%clk 0:01:42.6]} 19... Qf5
{[%clk 0:02:43.6]} 20. Bc1 {[%clk 0:01:33.3]} 20... h6 {[%clk 0:02:09.6]} 21.
Qe4 {[%clk 0:01:30.9]} 21... Qxe4 {[%clk 0:02:02.5]} 22. Rxe4 {[%clk 0:01:30.4]}
22... Be6 {[%clk 0:02:03.2]} 23. a3 {[%clk 0:01:25.5]} 23... f5 {[%clk
0:02:03.6]} 24. Re1 {[%clk 0:01:24.5]} 24... f4 {[%clk 0:02:04.2]} 25. h5 {[%clk
0:00:48.6]} 25... Ne7 {[%clk 0:02:04.4]} 26. Ne5 {[%clk 0:00:25.4]} 26... fxg3
{[%clk 0:01:59.9]} 27. fxg3 {[%clk 0:00:26.3]} 27... Nf5 {[%clk 0:01:55.3]} 28.
Bf4 {[%clk 0:00:21.1]} 28... Re8 {[%clk 0:01:48.7]} 29. Kf2 {[%clk 0:00:18.7]}
29... Bb6 {[%clk 0:01:46.4]} 30. g4 {[%clk 0:00:14.5]} 30... Nxd4 {[%clk
0:01:45.7]} 31. cxd4 {[%clk 0:00:13.1]} 31... Bxd4+ {[%clk 0:01:46.6]} 32. Kg3
{[%clk 0:00:12.8]} 32... Bxb2 {[%clk 0:01:46.6]} 33. Rb1 {[%clk 0:00:09.4]}
33... Bxe5 {[%clk 0:01:45]} 34. Bxe5 {[%clk 0:00:08.5]} 34... Bc8 {[%clk
0:01:44]} 35. Re1 {[%clk 0:00:06.8]} 35... Rd8 {[%clk 0:01:42.6]} 36. Re3 {[%clk
0:00:06.3]} 36... Be6 {[%clk 0:01:34.8]} 37. Bf4 {[%clk 0:00:04]} 37... Rd4
{[%clk 0:01:31.2]} 38. Bf3 {[%clk 0:00:02.9]} 38... a5 {[%clk 0:01:30.2]} 39.
Be5 {[%clk 0:00:03.3]} 39... Rd7 {[%clk 0:01:27.2]} 40. Bf4 {[%clk 0:00:03.5]}
40... c5 {[%clk 0:01:25.8]} 41. g5 {[%clk 0:00:04]} 41... hxg5 {[%clk
0:01:25.2]} 42. Bxg5 {[%clk 0:00:04.9]} 42... c4 {[%clk 0:01:21.5]} 43. Be4
{[%clk 0:00:04.4]} 43... Rc7 {[%clk 0:01:15.9]} 44. Bf4 {[%clk 0:00:03.9]} 44...
Rc5 {[%clk 0:01:13.6]} 45. Bf3 {[%clk 0:00:03.9]} 45... b5 {[%clk 0:01:12.7]}
46. Bd6 {[%clk 0:00:03.9]} 46... Rg5+ {[%clk 0:01:12.4]} 47. Kf4 {[%clk
0:00:03.1]} 47... Rf5+ {[%clk 0:01:12.7]} 48. Kg3 {[%clk 0:00:03.8]} 48... Rg5+
{[%clk 0:01:03.9]} 49. Kf4 {[%clk 0:00:03.5]} 49... Rg1 {[%clk 0:01:04.2]} 50.
Bc7 {[%clk 0:00:03.6]} 50... b4 {[%clk 0:01:02.2]} 51. axb4 {[%clk 0:00:03.6]}
51... axb4 {[%clk 0:01:02.4]} 52. Bd6 {[%clk 0:00:03.8]} 52... b3 {[%clk
0:01:02.2]} 53. Be5 {[%clk 0:00:03.7]} 53... f6 {[%clk 0:00:55.7]} 54. Bc3
{[%clk 0:00:03.9]} 54... Kf7 {[%clk 0:00:56.3]} 55. Be4 {[%clk 0:00:03.1]} 55...
Rg4+ {[%clk 0:00:55.9]} 56. Kf3 {[%clk 0:00:03.2]} 56... Rh4 {[%clk 0:00:56.3]}
57. Bg6+ {[%clk 0:00:03.3]} 57... Ke7 {[%clk 0:00:56.3]} 58. Bb4+ {[%clk
0:00:03.7]} 58... Kd7 {[%clk 0:00:56.1]} 59. Bc3 {[%clk 0:00:04.3]} 59... Rh2
{[%clk 0:00:50]} 60. Kg3 {[%clk 0:00:03.5]} 60... Ra2 {[%clk 0:00:47.5]} 61. Kf3
{[%clk 0:00:03.7]} 61... Bd5+ {[%clk 0:00:46.3]} 62. Kf4 {[%clk 0:00:02.8]}
62... Rf2+ {[%clk 0:00:45.2]} 63. Kg4 {[%clk 0:00:03.1]} 63... b2 {[%clk
0:00:42.9]} 64. Kg3 {[%clk 0:00:02.6]} 64... Rg2+ {[%clk 0:00:42.8]} 0-1

[Event "Early-Titled-Tuesday-Blitz-February-20-2024"]
[Site "Chess.com"]
[Date "2024.02.20"]
[Round "10"]
[White "Polish_fighter3000"]
[Black "Hovik_Hayrapetyan"]
[Result "1-0"]
[WhiteElo "3060"]
[BlackElo "2903"]
[TimeControl "180+1"]
[EndTime "9:58:52 PST"]
[Termination "Polish_fighter3000 won on time"]

1. d4 {[%clk 0:03:00.9]} 1... Nf6 {[%clk 0:02:59.8]} 2. Nf3 {[%clk 0:03:00.9]}
2... d5 {[%clk 0:02:59.8]} 3. Bf4 {[%clk 0:02:59.9]} 3... c5 {[%clk 0:02:59.4]}
4. e3 {[%clk 0:02:59.7]} 4... Nc6 {[%clk 0:02:58.6]} 5. c3 {[%clk 0:03:00.3]}
5... Qb6 {[%clk 0:02:43.8]} 6. Qc2 {[%clk 0:03:00.4]} 6... Bf5 {[%clk
0:02:28.4]} 7. dxc5 {[%clk 0:03:00]} 7... Bxc2 {[%clk 0:02:28.5]} 8. cxb6 {[%clk
0:03:00.3]} 8... axb6 {[%clk 0:02:29.4]} 9. Na3 {[%clk 0:03:00.7]} 9... Ba4
{[%clk 0:02:29.7]} 10. Nb5 {[%clk 0:02:52.4]} 10... Kd7 {[%clk 0:02:22.9]} 11.
Nc7 {[%clk 0:02:24.8]} 11... Ra7 {[%clk 0:02:13.3]} 12. Rc1 {[%clk 0:02:24.9]}
12... e6 {[%clk 0:01:34.8]} 13. Ng5 {[%clk 0:02:21.4]} 13... Nd8 {[%clk
0:01:30.8]} 14. Nb5 {[%clk 0:02:04.6]} 14... Ra5 {[%clk 0:01:28.4]} 15. Nd4
{[%clk 0:02:00.9]} 15... Bd6 {[%clk 0:00:32.3]} 16. Bxd6 {[%clk 0:01:56.4]}
16... Kxd6 {[%clk 0:00:33.2]} 17. f4 {[%clk 0:01:57.1]} 17... Bd7 {[%clk
0:00:27.5]} 18. a3 {[%clk 0:01:55]} 18... b5 {[%clk 0:00:22]} 19. h3 {[%clk
0:01:32.9]} 19... h6 {[%clk 0:00:21.4]} 20. Ngf3 {[%clk 0:01:32.9]} 20... Ne4
{[%clk 0:00:21.9]} 21. Bd3 {[%clk 0:01:31]} 21... Nc5 {[%clk 0:00:20.3]} 22. Bc2
{[%clk 0:01:13.9]} 22... Na4 {[%clk 0:00:20.3]} 23. Rb1 {[%clk 0:01:10.1]} 23...
Nc6 {[%clk 0:00:18.5]} 24. O-O {[%clk 0:00:56.2]} 24... f6 {[%clk 0:00:18]} 25.
Rfd1 {[%clk 0:00:40.4]} 25... Kc7 {[%clk 0:00:18]} 26. f5 {[%clk 0:00:28.8]}
26... e5 {[%clk 0:00:17]} 27. Nb3 {[%clk 0:00:28.6]} 27... Nb6 {[%clk
0:00:08.4]} 28. Nxa5 {[%clk 0:00:26.7]} 28... Nxa5 {[%clk 0:00:09.3]} 29. b3
{[%clk 0:00:20.8]} 29... Bc6 {[%clk 0:00:08.9]} 30. Kf2 {[%clk 0:00:20]} 30...
Nc8 {[%clk 0:00:07.9]} 31. g4 {[%clk 0:00:06.8]} 31... Ne7 {[%clk 0:00:08]} 32.
Kg3 {[%clk 0:00:05.2]} 32... b6 {[%clk 0:00:08.1]} 33. Rd2 {[%clk 0:00:05]}
33... Nb7 {[%clk 0:00:08.3]} 34. Rbd1 {[%clk 0:00:03.7]} 34... Nc5 {[%clk
0:00:07.9]} 35. b4 {[%clk 0:00:03.6]} 35... Nb7 {[%clk 0:00:08.1]} 36. Bb3
{[%clk 0:00:04.2]} 36... Ra8 {[%clk 0:00:07.3]} 37. Ra2 {[%clk 0:00:03]} 37...
Nd6 {[%clk 0:00:07.5]} 38. Nd2 {[%clk 0:00:03.7]} 38... h5 {[%clk 0:00:06.4]}
39. Rda1 {[%clk 0:00:04]} 39... hxg4 {[%clk 0:00:05.8]} 40. hxg4 {[%clk
0:00:04.9]} 40... g6 {[%clk 0:00:05.4]} 41. fxg6 {[%clk 0:00:05.1]} 41... f5
{[%clk 0:00:03.7]} 42. a4 {[%clk 0:00:05.3]} 42... fxg4 {[%clk 0:00:02.1]} 43.
axb5 {[%clk 0:00:05.4]} 43... Rxa2 {[%clk 0:00:01.8]} 44. Rxa2 {[%clk 0:00:06]}
44... Nxb5 {[%clk 0:00:02.6]} 45. Bc2 {[%clk 0:00:05]} 45... Nxc3 {[%clk
0:00:01.4]} 46. Ra7+ {[%clk 0:00:05]} 46... Kd6 {[%clk 0:00:01.9]} 47. g7 {[%clk
0:00:04.2]} 1-0

[Event "Early-Titled-Tuesday-Blitz-February-20-2024"]
[Site "Chess.com"]
[Date "2024.02.20"]
[Round "10"]
[White "noblerone"]
[Black "annamaja"]
[Result "1-0"]
[WhiteElo "2527"]
[BlackElo "2390"]
[TimeControl "180+1"]
[EndTime "9:58:52 PST"]
[Termination "noblerone won by resignation"]

1. d4 {[%clk 0:03:00.9]} 1... d5 {[%clk 0:03:00.1]} 2. Nf3 {[%clk 0:02:58.7]}
2... Nf6 {[%clk 0:03:00.4]} 3. Bg5 {[%clk 0:02:59]} 3... e6 {[%clk 0:02:57.5]}
4. Nbd2 {[%clk 0:02:58]} 4... Be7 {[%clk 0:02:58]} 5. e3 {[%clk 0:02:54.1]} 5...
O-O {[%clk 0:02:57.5]} 6. Bd3 {[%clk 0:02:53.4]} 6... Nbd7 {[%clk 0:02:53.4]} 7.
O-O {[%clk 0:02:51.3]} 7... Re8 {[%clk 0:02:53.6]} 8. c3 {[%clk 0:02:50.4]} 8...
Nf8 {[%clk 0:02:51]} 9. Ne5 {[%clk 0:02:49.8]} 9... c5 {[%clk 0:02:48.9]} 10. f4
{[%clk 0:02:50.1]} 10... Ng6 {[%clk 0:02:43.9]} 11. Nxg6 {[%clk 0:02:41.6]}
11... hxg6 {[%clk 0:02:43.1]} 12. Nf3 {[%clk 0:02:42.5]} 12... Ne4 {[%clk
0:02:39.9]} 13. Bxe7 {[%clk 0:02:42.2]} 13... Qxe7 {[%clk 0:02:39.3]} 14. Ne5
{[%clk 0:02:42.4]} 14... b6 {[%clk 0:02:30.6]} 15. Rf3 {[%clk 0:02:32]} 15... g5
{[%clk 0:02:18.8]} 16. fxg5 {[%clk 0:02:04.6]} 16... Nxg5 {[%clk 0:02:14.6]} 17.
Rg3 {[%clk 0:02:02.2]} 17... f6 {[%clk 0:01:48.5]} 18. Rxg5 {[%clk 0:01:49.2]}
18... fxe5 {[%clk 0:01:25.6]} 19. Rxe5 {[%clk 0:01:49]} 19... Rf8 {[%clk
0:01:16.2]} 20. Qh5 {[%clk 0:01:38.4]} 20... Rf6 {[%clk 0:01:14.5]} 21. Qh7+
{[%clk 0:01:20.1]} 21... Kf8 {[%clk 0:01:10.9]} 22. Bg6 {[%clk 0:01:06.5]} 22...
Qd8 {[%clk 0:00:36.8]} 23. Qh8+ {[%clk 0:00:54.3]} 23... Ke7 {[%clk 0:00:36.8]}
24. Qxg7+ {[%clk 0:00:52.8]} 24... Kd6 {[%clk 0:00:37.5]} 25. Bh5 {[%clk
0:00:39.8]} 25... Ba6 {[%clk 0:00:28.8]} 26. e4 {[%clk 0:00:36.8]} 26... Qf8
{[%clk 0:00:26.3]} 27. Qxf8+ {[%clk 0:00:31.1]} 27... Raxf8 {[%clk 0:00:27.2]}
28. Bf3 {[%clk 0:00:26.9]} 28... dxe4 {[%clk 0:00:21]} 29. Rxe4 {[%clk
0:00:24.6]} 29... Bb7 {[%clk 0:00:18.7]} 30. dxc5+ {[%clk 0:00:24.8]} 30... bxc5
{[%clk 0:00:18]} 31. Rd1+ {[%clk 0:00:23.5]} 31... Ke7 {[%clk 0:00:15.6]} 32.
Re3 {[%clk 0:00:23.5]} 32... Bxf3 {[%clk 0:00:15.5]} 33. Rxf3 {[%clk 0:00:23.9]}
33... Rxf3 {[%clk 0:00:15.4]} 34. gxf3 {[%clk 0:00:24.8]} 34... Rxf3 {[%clk
0:00:15.9]} 35. Rd2 {[%clk 0:00:20.3]} 35... Re3 {[%clk 0:00:03.2]} 36. Kf2
{[%clk 0:00:20.4]} 36... Rh3 {[%clk 0:00:03.5]} 37. Kg2 {[%clk 0:00:20.9]} 37...
Re3 {[%clk 0:00:04.3]} 38. h4 {[%clk 0:00:20.1]} 38... Kf6 {[%clk 0:00:04.8]}
39. Rf2+ {[%clk 0:00:13.2]} 39... Kg6 {[%clk 0:00:04.9]} 40. c4 {[%clk
0:00:09.4]} 40... e5 {[%clk 0:00:05.3]} 41. b3 {[%clk 0:00:09.4]} 41... e4
{[%clk 0:00:05.7]} 42. Rf8 {[%clk 0:00:08.4]} 42... Rc3 {[%clk 0:00:05.5]} 43.
Re8 {[%clk 0:00:07.6]} 43... Rc2+ {[%clk 0:00:05.1]} 44. Kg3 {[%clk 0:00:08.3]}
44... Rxa2 {[%clk 0:00:05.6]} 45. Rxe4 {[%clk 0:00:08.2]} 45... Rb2 {[%clk
0:00:06.3]} 46. Re3 {[%clk 0:00:08.8]} 46... a5 {[%clk 0:00:04.8]} 47. Kg4
{[%clk 0:00:09.4]} 47... Rg2+ {[%clk 0:00:03.3]} 48. Kf4 {[%clk 0:00:09.2]}
48... Kh5 {[%clk 0:00:02.7]} 49. Re5+ {[%clk 0:00:08.3]} 49... Kxh4 {[%clk
0:00:03.1]} 50. Rxc5 {[%clk 0:00:07.6]} 50... Rb2 {[%clk 0:00:01.9]} 51. Rb5
{[%clk 0:00:07.9]} 51... Rxb3 {[%clk 0:00:02.5]} 52. Rxb3 {[%clk 0:00:07.9]} 1-0